Cogmind - Beta 17.1 @@@ ROGUE MODE // 2026.09.12 @ 18:52:11 Player: st-3v1 Result: Destroyed by G-67 Veteran with Plasma Rifle Performance ------------- Evolutions (6) 3000 Regions Visited (17) 3400 Robots Destroyed (187) 935 Value Destroyed (7282) 7282 Prototype IDs (32) 640 Alien Tech Used (0) 0 Bonus (1771) 1771 TOTAL SCORE: 17028 Bonus ------- Pacifist 200 High Alert Combat Kills 192 Follower Combat Kills 1079 Aligned with FarCom 300 Cogmind --------- Core Integrity 0/1150 Matter 300/300 Energy 99/100 System Corruption 5% Temperature Cool (12) Movement Core (50) Location -4/Armory Parts ------- > --- POWER (1) -------- (None) > --- PROPULSION (8) --- (None) > --- UTILITY (4) ------ PSU Rigger > --- WEAPON (6) ------- (None) > --- INVENTORY (5) ---- Quantum Reactor Advanced Force Booster Centrium Medium Armor Plating Peak State ------------ > --- POWER ------------ Quantum Reactor > --- PROPULSION ------- Improved Treads Medium Treads Medium Treads Medium Treads Medium Treads Medium Treads Armored Medium Treads Advanced Medium Treads > --- UTILITY ---------- Huge Storage Unit Advanced Signal Interpreter Advanced Melee Analysis Suite Centrium Medium Armor Plating > --- WEAPON ----------- Flail Heavy Mace Axe Ripper Phasing Sabre Ionic Axe > --- INVENTORY -------- Particle Reactor Particle Reactor Quantum Reactor Light Treads Improved Treads Improved Treads Improved Treads Improved Treads Improved Signal Interpreter Improved Signal Interpreter Advanced Signal Interpreter Advanced Melee Analysis Suite Microactuators Improved Medium Armor Plating Improved Medium Armor Plating Centrium Medium Armor Plating Advanced Shield Generator Improved Hacking Suite Improved Hacking Suite Improved Hacking Suite Authchip [Weapon] Improved System Restoration Module Improved System Restoration Module PSU Rigger Ripper [Rating: 100] Favorites ----------- Power Enhanced Nuclear Core Engine Heavy Deuterium Engine Power Core Enhanced Nuclear Core Reactor Quantum Reactor Propulsion Medium Treads Treads Medium Treads Utility Huge Storage Unit Device Microactuators Storage Huge Storage Unit Processor Core Analyzer Hackware Hacking Suite Protection Centrium Medium Armor Plating Weapon Axe Impact Weapon Hammer Slashing Weapon Axe Piercing Weapon Force Lance Build | -11 -10 -10 -9 -9 -9 -8 -8 -7 -7 -7 -7 -5 -5 -5 -5 -4 -4 ------- Run | Yrd Mat Min Mat Min Exi Min Mat Fac Sto Rec Scr Fac Ext Cet Arc Fac Arm Slots Evolved 12 | . . . 2 . . . 2 2 . . . 4 . . . 2 . Power . | . . . . . . . . . . . . . . . . . . Propulsion 6 | . . . 2 . . . 2 . . . . 2 . . . . . Utility 2 | . . . . . . . . . . . . 2 . . . . . Weapon 4 | . . . . . . . . 2 . . . . . . . 2 . Parts Attached 129 | 2 2 . 7 . . . 2 14 11 2 3 22 19 4 7 29 5 Power 11 | . . . . . . . . 3 1 . 1 1 2 1 . 1 1 Engine 2 | . . . . . . . . 1 . . 1 . . . . . . Core 7 | . . . . . . . . 2 1 . . 1 2 . . 1 . Reactor 2 | . . . . . . . . . . . . . . 1 . . 1 Propulsion 53 | 2 . . 3 . . . 1 3 6 1 1 11 8 . 6 10 1 Treads 53 | 2 . . 3 . . . 1 3 6 1 1 11 8 . 6 10 1 Leg . | . . . . . . . . . . . . . . . . . . Wheel . | . . . . . . . . . . . . . . . . . . Hover . | . . . . . . . . . . . . . . . . . . Flight . | . . . . . . . . . . . . . . . . . . Utility 46 | . 2 . 4 . . . . 4 3 . 1 7 6 3 1 12 3 Device 15 | . 2 . 2 . . . . 1 . . . 4 1 1 1 3 . Storage 2 | . . . 1 . . . . . . . . . . . . . 1 Processor 9 | . . . . . . . . 2 1 . . 2 1 . . 3 . Hackware 7 | . . . . . . . . . 1 . . . 2 . . 4 . Protection 13 | . . . 1 . . . . 1 1 . 1 1 2 2 . 2 2 Artifact . | . . . . . . . . . . . . . . . . . . Weapon 19 | . . . . . . . 1 4 1 1 . 3 3 . . 6 . Energy Gun . | . . . . . . . . . . . . . . . . . . Energy Cannon . | . . . . . . . . . . . . . . . . . . Ballistic Gun . | . . . . . . . . . . . . . . . . . . Ballistic Cannon . | . . . . . . . . . . . . . . . . . . Launcher . | . . . . . . . . . . . . . . . . . . Special Weapon . | . . . . . . . . . . . . . . . . . . Impact Weapon 7 | . . . . . . . 1 2 . 1 . . . . . 3 . Slashing Weapon 11 | . . . . . . . . 2 1 . . 3 3 . . 2 . Piercing Weapon 1 | . . . . . . . . . . . . . . . . 1 . Special Melee Weapon . | . . . . . . . . . . . . . . . . . . Unidentified Prototypes 6 | . . . . . . . . 1 1 . . 1 . 1 . 2 . Corrupted Parts 2 | . . . . . . . . . . . 1 . . . 1 . . System Corruption 4 | . . . . . . . . . . . 1 . . . 3 . . Parts Lost 77 | . . . 3 2 . . 1 11 . 2 . 11 10 . 4 28 5 Power 3 | . . . . . . . . 2 . . . 1 . . . . . Propulsion 48 | . . . 2 1 . . 1 5 . 2 . 9 5 . 4 18 1 Utility 13 | . . . 1 1 . . . 2 . . . . 2 . . 5 2 Weapon 13 | . . . . . . . . 2 . . . 1 3 . . 5 2 Highest Loss Streak 7 | . . . 2 2 . . 1 3 . 1 . 6 3 . 2 7 4 To Critical Strikes 2 | . . . . . . . . . . . . . 2 . . . . Average Backups 16 | 1 4 5 4 4 4 5 5 5 6 17 23 24 23 24 24 23 3 Power 2 | . 1 . . . . . . 1 1 7 5 4 2 2 3 3 1 Propulsion 1 | . . . . . . . . . . 3 2 . . 6 5 3 . Utility 9 | . 3 4 4 4 4 5 5 4 3 7 10 13 15 12 13 14 1 Weapon 1 | . . . . . . . . . . . 3 4 3 3 3 . . Tool/Special . | . . . . . . . . . . . . . . . . . . Unused Backups 56 | . 2 1 2 . . . . 7 1 . 4 7 7 2 5 15 3 Power 22 | . 1 1 . . . . . 2 . . 3 3 5 . 1 4 2 Propulsion . | . . . . . . . . . . . . . . . . . . Utility 29 | . 1 . 2 . . . . 5 1 . 1 3 1 . 4 10 1 Weapon 3 | . . . . . . . . . . . . 1 1 . . 1 . Tool/Special 2 | . . . . . . . . . . . . . . 2 . . . Average Slot Usage (%) 75 | . 52 57 37 44 44 44 46 45 53 92 99 85 94 100 99 90 13 Core 3 | . . . . . . . . 2 3 7 6 4 5 1 . . . Treads 31 | . 28 28 17 24 22 22 21 9 24 44 45 33 42 47 46 36 1 Device 6 | . 23 28 20 19 22 22 16 1 . . . 8 5 5 5 4 4 Storage 4 | . . . . . . . . 3 3 7 6 5 5 5 5 4 . Processor 4 | . . . . . . . . 5 4 7 7 5 5 5 5 4 . Protection 1 | . . . . . . . 1 2 . . . 1 1 4 5 4 . Impact Weapon 6 | . . . . . . . 7 11 3 9 15 7 . . . 8 . Slashing Weapon 12 | . . . . . . . . 2 10 15 15 13 21 23 23 18 2 Peak Build Rating 100 | 2 4 4 9 9 8 8 14 29 38 48 49 69 82 83 90 100 42 Average Rating 48 | 1 3 4 5 7 7 8 11 18 22 43 47 59 71 78 86 90 22 On Entrance 28 | . 2 4 4 9 7 8 8 11 4 38 47 49 69 71 82 89 10 Avg Prop Armor Cover (%) 38 | 41 39 38 38 38 38 38 39 . . . . . . . . . . Naked Turns 1 | . . . . . . . . . . . . . . . . 1 . Heaviest Build 149 | . 3 3 3 1 1 1 9 96 96 99 99 107 110 123 123 149 29 Greatest Support 220 | 40 3 3 69 46 3 3 45 45 152 160 160 208 202 198 213 220 30 Greatest Overweight (x) 33 | . . . . . . . . 30 . . . 33 . . . 1 3 Average Overweight (x) . | . . . . . . . . 1 . . . . . . . . 1 Largest Inventory Capacity 25 | 5 5 5 25 5 5 5 5 25 25 25 25 25 25 25 25 25 5 Average Capacity 19 | 5 5 5 5 5 5 5 5 15 15 25 24 25 25 25 25 24 5 Most Carried 25 | 3 5 5 5 5 5 5 5 9 13 23 25 25 25 25 25 25 5 Average Carried 16 | 1 4 4 4 4 4 5 5 6 6 17 23 24 23 24 24 23 3 Final Capacity 25 | 5 5 5 5 5 5 5 5 5 25 25 25 25 25 25 25 5 5 Final Carried 25 | 3 5 5 5 4 5 5 5 5 13 23 25 25 25 25 25 5 3 Class Distribution -------------------- 33% | Scavenger-Gladiator 31% | Mutant 14% | Commander-Mutant 11% | Gladiator 7% | Commander-Gladiator Dominant Class ---------------- Mutant | -10/Materials Mutant | -10/Mines Mutant | -9/Materials Mutant | -9/Mines Mutant | -9/Exiles Mutant | -8/Mines Mutant | -8/Materials Mutant | -7/Factory Mutant | -7/Storage Mutant | -7/Recycling Commander-Mutant | -7/Scraptown Scavenger-Gladiator | -5/Factory Commander-Gladiator | -5/Extension Scavenger-Gladiator | -5/Cetus Scavenger-Gladiator | -5/Archives Scavenger-Gladiator | -4/Factory Mutant | -4/Armory Resources | -11 -10 -10 -9 -9 -9 -8 -8 -7 -7 -7 -7 -5 -5 -5 -5 -4 -4 ----------- Run | Yrd Mat Min Mat Min Exi Min Mat Fac Sto Rec Scr Fac Ext Cet Arc Fac Arm Matter Collected 2439 | 197 10 22 . 4 . . 34 231 204 87 110 373 412 66 106 458 125 Remotely . | . . . . . . . . . . . . . . . . . . Salvage Created 9947 | . . . . . . . 34 1099 510 928 . 1936 1895 121 525 2645 254 Parts 428 | . . . 3 . . . . 40 31 27 . 80 80 4 31 125 7 Haulers Intercepted 9 | . . . . . . . . 2 2 . . 3 2 . . . . Recyclers Shooed 2 | . . . . . . . . . . 1 . . 1 . . . . Parts Field Recycled . | . . . . . . . . . . . . . . . . . . Retrieved Matter . | . . . . . . . . . . . . . . . . . . Parts Self-Destructed . | . . . . . . . . . . . . . . . . . . Prevented . | . . . . . . . . . . . . . . . . . . Parts Restored . | . . . . . . . . . . . . . . . . . . Kills | -11 -10 -10 -9 -9 -9 -8 -8 -7 -7 -7 -7 -5 -5 -5 -5 -4 -4 ------- Run | Yrd Mat Min Mat Min Exi Min Mat Fac Sto Rec Scr Fac Ext Cet Arc Fac Arm Combat Hostiles Destroyed 124 | . . . 4 3 . . 1 15 3 3 . 18 22 2 4 45 4 Melee 114 | . . . 4 3 . . . 12 3 2 . 17 22 2 4 41 4 Classes Destroyed 15 | . . . 1 . . . 1 9 2 . . . . . . 1 1 Worker 16 | . . . . . . . . 5 5 . . 2 . . . 4 . Builder 11 | . . . . . . . . . 3 . . 4 2 . . 2 . Hauler 9 | . . . . . . . . 2 2 . . 3 2 . . . . Recycler 18 | . . . . . . . . 2 1 8 . 4 2 . . 1 . Operator 7 | . . . . . . . . . 1 . . . 1 . 5 . . Watcher 2 | . . . . . . . . 1 . . . 1 . . . . . Swarmer 28 | . . . 4 3 . . . . . . . . 4 . . 17 . Saboteur 1 | . . . . . . . . . . . . . . . . . 1 Grunt 35 | . . . . . . . 1 7 1 . . 8 7 . . 8 3 Brawler 2 | . . . . . . . . 1 . . . . . . . 1 . Duelist 1 | . . . . . . . . 1 . . . . . . . . . Sentry 24 | . . . . . . . . 3 . 3 . 2 5 . 4 7 . Hunter 9 | . . . . . . . . 1 . . . . 6 . . 2 . Programmer 21 | . . . . . . . . 2 2 . . 8 . . . 9 . Behemoth 1 | . . . . . . . . . . . . . . . . 1 . Cetus Guard 2 | . . . . . . . . . . . . . . 2 . . . Best Kill Streak 10 | . . . 4 2 . . 1 3 4 10 . 6 4 2 3 6 2 Combat Bots Only 6 | . . . 4 2 . . 1 3 2 2 . 6 4 2 1 5 2 Max Kills in Single Turn 2 | . . . 1 1 . . 1 1 1 1 . 1 1 1 1 2 1 Gunslinging . | . . . . . . . . . . . . . . . . . . Exploded . | . . . . . . . . . . . . . . . . . . Melee 2 | . . . 1 1 . . . 1 1 1 . 1 1 1 1 2 1 Uniques/NPCs Destroyed . | . . . . . . . . . . . . . . . . . . Combat | -11 -10 -10 -9 -9 -9 -8 -8 -7 -7 -7 -7 -5 -5 -5 -5 -4 -4 -------- Run | Yrd Mat Min Mat Min Exi Min Mat Fac Sto Rec Scr Fac Ext Cet Arc Fac Arm Hostile Shots Fired 1396 | . 24 28 81 56 . . 40 223 18 144 . 98 142 8 32 427 75 Missed 425 | . 10 10 31 25 . . 15 69 4 49 . 25 31 1 3 128 24 Hits 971 | . 14 18 50 31 . . 25 154 14 95 . 73 111 7 29 299 51 Melee 11 | . . . . . . . . 7 . . . . . . . 2 2 Projectile 960 | . 14 18 50 31 . . 25 147 14 95 . 73 111 7 29 297 49 AOE 2 | . . . . . . . . . . . . . . . . 2 . Critical Strikes 35 | . . . . . . . 1 3 . . . 5 6 1 . 12 7 Actively Blocked 1 | . . . . . . . . . . . . . . . . . 1 Part Disruptions 1 | . . . . . . . . . . . . 1 . . . . . Damage Taken 15434 | . 119 187 491 247 . . 381 1940 236 735 . 1510 1999 280 766 5578 965 Core 2466 | . . 37 139 65 . . 102 538 34 76 . 97 159 24 30 757 408 Absorbed by Shields 392 | . . . . . . . . . . . . . 90 . . 302 . Redirected to Shielding 50 | . . . . . . . . . . . . . . . . . 50 Ignored by Resistances 258 | . . . . . . . . . . . . . . . . 258 . Regen/Repaired (Parts) 615 | . . . . . . . . 152 82 . . . . . . 381 . Core Remaining (%) 65 | 100 . 85 . . . 49 81 . . . 7 . . . 69 . . Volleys Fired . | . . . . . . . . . . . . . . . . . . Largest . | . . . . . . . . . . . . . . . . . . Hottest . | . . . . . . . . . . . . . . . . . . Shots Fired . | . . . . . . . . . . . . . . . . . . Gun . | . . . . . . . . . . . . . . . . . . Cannon . | . . . . . . . . . . . . . . . . . . Launcher . | . . . . . . . . . . . . . . . . . . Special . | . . . . . . . . . . . . . . . . . . Kinetic . | . . . . . . . . . . . . . . . . . . Thermal . | . . . . . . . . . . . . . . . . . . Explosive . | . . . . . . . . . . . . . . . . . . Electromagnetic . | . . . . . . . . . . . . . . . . . . Robot Hit Streak . | . . . . . . . . . . . . . . . . . . Robot Miss Streak . | . . . . . . . . . . . . . . . . . . Penetration Max . | . . . . . . . . . . . . . . . . . . Secondary Targets . | . . . . . . . . . . . . . . . . . . Shots Hit Robots 533 | . . . . . . . 9 68 25 34 . 98 77 13 30 167 12 Core Hits 209 | . . 3 2 1 . . 1 17 10 8 . 35 42 4 12 69 5 Critical Kills 7 | . . . . . . . . 5 . . . 2 . . . . . Critical Parts Destroyed 19 | . . . . . . . 1 8 . 1 . 4 . . . 5 . Critical Strikes 85 | . . . . . . . 1 17 . 4 . 16 11 2 2 28 4 Smash 27 | . . . . . . . 1 14 . 1 . 6 . . . 5 . Sever 46 | . . . . . . . . 3 . 3 . 10 11 2 2 11 4 Impale 12 | . . . . . . . . . . . . . . . . 12 . Melee Attacks 703 | . . . . . . . 13 91 38 35 . 139 100 14 33 225 15 Impact 152 | . . . . . . . 13 62 4 6 . 30 . . . 37 . Slashing 475 | . . . . . . . . 29 34 29 . 109 100 14 33 116 11 Piercing 76 | . . . . . . . . . . . . . . . . 72 4 Sneak Attacks 80 | . . . . . . . . 10 17 12 . 17 11 . 5 8 . Combat Hostiles 3 | . . . . . . . . . . . . 1 2 . . . . Follow-up Attacks 165 | . . . . . . . . 9 2 10 . 31 26 4 5 78 . Damage Inflicted 25320 | . . 23 28 14 . . 246 2748 1412 1598 . 4908 3926 551 1742 7491 633 Guns . | . . . . . . . . . . . . . . . . . . Cannons . | . . . . . . . . . . . . . . . . . . Explosions . | . . . . . . . . . . . . . . . . . . Melee 25254 | . . . . . . . 246 2748 1412 1598 . 4908 3926 551 1742 7491 632 Ramming 66 | . . 23 28 14 . . . . . . . . . . . . 1 Kinetic . | . . . . . . . . . . . . . . . . . . Thermal . | . . . . . . . . . . . . . . . . . . Explosive . | . . . . . . . . . . . . . . . . . . Electromagnetic . | . . . . . . . . . . . . . . . . . . Impact 3400 | . . . . . . . 246 1621 117 170 . 536 . . . 710 . Slashing 18866 | . . . . . . . . 1127 1295 1428 . 4372 3926 551 1742 3849 576 Piercing 2988 | . . . . . . . . . . . . . . . . 2932 56 Highest Corruption 15 | . . . . . . . . 12 15 15 1 5 5 5 5 4 5 Average Corruption 5 | . . . . . . . . 4 12 15 1 3 5 5 4 2 4 Corruption Purged 5 | . . . . . . . . . . . . . . . 5 . . Corruption Blocked . | . . . . . . . . . . . . . . . . . . Effects 264 | . . . . . . . . 35 30 45 11 38 63 6 7 22 7 Message Errors 56 | . . . . . . . . 5 5 9 2 10 15 1 2 4 3 Matter Fused 73 | . . . . . . . . 6 7 10 5 8 21 3 2 10 1 Heat Flow Errors 32 | . . . . . . . . 5 4 8 2 5 4 . 1 3 . Energy Discharges 39 | . . . . . . . . 6 6 6 . 7 10 1 . 2 1 Parts Rejected 4 | . . . . . . . . . 1 1 . . 1 . . 1 . Parts Fused 3 | . . . . . . . . . . . . . 2 1 . . . Data Loss (minor) 35 | . . . . . . . . 8 3 8 . 5 6 . 2 1 2 Data Loss (major) 14 | . . . . . . . . 4 2 1 1 3 2 . . 1 . Alerts 5 | . . . . . . . . 1 . 1 1 . 2 . . . . Misdirections 3 | . . . . . . . . . 2 1 . . . . . . . Overload Shots . | . . . . . . . . . . . . . . . . . . Overflow Damage 2802 | . . . . . . . 45 667 188 349 . 465 299 . 62 691 36 Projectiles . | . . . . . . . . . . . . . . . . . . Explosions . | . . . . . . . . . . . . . . . . . . Melee 2802 | . . . . . . . 45 667 188 349 . 465 299 . 62 691 36 Knockbacks 16 | . . 1 . . . . 1 6 2 1 . 2 . . . 3 . Impact 14 | . . 1 . . . . 1 5 2 1 . 1 . . . 3 . Kinetic . | . . . . . . . . . . . . . . . . . . Secondary 2 | . . . . . . . . 1 . . . 1 . . . . . Self-Inflicted Damage 8 | . . 7 1 . . . . . . . . . . . . . . Shots . | . . . . . . . . . . . . . . . . . . Rammed 60 | . . 19 18 20 . . . . . . . . . . . . 3 Targets Rammed 67 | . . 19 22 23 . . . . . . . . . . . . 3 Kicked . | . . . . . . . . . . . . . . . . . . Crushed 7 | . . . 4 3 . . . . . . . . . . . . . Highest Temperature 272 | . . . . . . . . 188 203 225 217 272 260 . 181 201 10 Average Temperature 95 | . . . . . . . . 85 107 92 102 126 105 . 99 58 10 Received Heat Transfer 2984 | . . 106 87 . . . 180 465 45 222 . 348 258 36 108 835 294 Effects 3 | . . . . . . . . . 1 2 . . . . . . . Energy Bleed 1 | . . . . . . . . . 1 . . . . . . . . Interference 2 | . . . . . . . . . . 2 . . . . . . . Siege Activations . | . . . . . . . . . . . . . . . . . . Martial Activations . | . . . . . . . . . . . . . . . . . . Shielding Activations . | . . . . . . . . . . . . . . . . . . Robots Disrupted . | . . . . . . . . . . . . . . . . . . Combat Hostiles . | . . . . . . . . . . . . . . . . . . Robots Corrupted 16 | . . . . . . . 1 6 2 1 . 2 . . . 4 . Combat Hostiles 10 | . . . . . . . 1 3 . 1 . 1 . . . 4 . Parts Fried 21 | . . . . . . . 1 7 2 3 . 1 . . . 7 . Impact Corruptions 47 | . . . . . . . 2 21 3 3 . 7 . . . 11 . Robots Melted . | . . . . . . . . . . . . . . . . . . Combat Hostiles . | . . . . . . . . . . . . . . . . . . Parts Melted 2 | . . . . . . . . . 2 . . . . . . . . Heat Transferred . | . . . . . . . . . . . . . . . . . . Parts Sabotaged 6 | . . . . . . . . . . . . . . . . . 6 Parts Stolen . | . . . . . . . . . . . . . . . . . . Parts Stripped . | . . . . . . . . . . . . . . . . . . Power Chain Reactions . | . . . . . . . . . . . . . . . . . . Alert | -11 -10 -10 -9 -9 -9 -8 -8 -7 -7 -7 -7 -5 -5 -5 -5 -4 -4 ------- Run | Yrd Mat Min Mat Min Exi Min Mat Fac Sto Rec Scr Fac Ext Cet Arc Fac Arm Maximum Alert Level 2 | . . . 1 . . . . 1 1 . . . 1 . . 2 1 Low Security (%) 88 | 100 100 100 90 100 . 100 100 95 63 100 . 100 88 100 100 61 77 Level 1 7 | . . . 9 . . . . 4 37 . . . 11 . . 15 22 Level 2 3 | . . . . . . . . . . . . . . . . 22 . Level 3 . | . . . . . . . . . . . . . . . . . . Level 4 . | . . . . . . . . . . . . . . . . . . Level 5 . | . . . . . . . . . . . . . . . . . . High Security . | . . . . . . . . . . . . . . . . . . Max Security . | . . . . . . . . . . . . . . . . . . Peak Influence 535 | . 30 64 260 120 . 6 29 215 245 54 . 177 249 134 20 535 247 Initial 247 | . . 8 3 40 . . . . 95 54 . . 84 134 . . 247 Average 79 | . 2 10 76 91 . . 5 29 150 16 . 88 65 69 3 188 158 Influence Increases 5882 | . 65 79 573 130 . 6 64 677 582 321 . 763 1073 108 105 1256 80 Destroy 0b10 Robot/C 3020 | . . 20 80 60 . . 20 380 200 80 . 400 640 80 80 900 80 Destroy 0b10 Robot/NC 350 | . . . . . . . . 50 65 50 . 70 50 5 25 35 . Destroy Leader 532 | . . 10 10 10 . . . 106 56 . . 98 52 . . 190 . Allied During Kill 413 | . . 4 . . . . . 13 161 6 . 9 201 19 . . . Successful Hack 192 | . 20 . 18 . . 6 14 18 24 5 . 50 11 . . 26 . Select Force Hacks 210 | . 30 . . . . . . . . 180 . . . . . . . Disable Machine 165 | . . . . . . . . 15 60 . . 30 15 . . 45 . Destroy Structure 70 | . . . . . . . . 5 1 . . 16 44 4 . . . Partial Spotted 75 | . . . 75 . . . . . . . . . . . . . . Lose Combat Pursuer 855 | . 15 45 390 60 . . 30 90 15 . . 90 60 . . 60 . Influence Decreases 5815 | . 43 92 478 144 90 6 64 467 653 448 12 591 1004 349 105 749 520 Entered New Map 841 | . . 14 6 64 90 . . . 115 85 12 . 88 107 . . 260 Time Decay 3480 | . 43 38 349 60 . 6 54 357 318 329 . 441 589 122 105 479 190 Search Patrol Dispatched 100 | . . . 100 . . . . . . . . . . . . . . Lost Part 633 | . . . 23 20 . . 10 70 . 20 . 110 60 . . 270 50 Lost Ally 761 | . . 40 . . . . . 40 220 14 . 40 267 120 . . 20 Squads Dispatched 39 | . 2 . 1 . . . 2 9 5 . . 7 2 . . 10 1 Investigation 10 | . 2 . 1 . . . 1 . 1 . . 3 1 . . 1 . Extermination 15 | . . . . . . . . 4 1 . . 4 . . . 5 1 Reinforcement 6 | . . . . . . . 1 2 1 . . . 1 . . 1 . Assault 2 | . . . . . . . . . 2 . . . . . . . . Garrison 6 | . . . . . . . . 3 . . . . . . . 3 . Intercept . | . . . . . . . . . . . . . . . . . . Searches Triggered 1 | . . . 1 . . . . . . . . . . . . . . Construction Impeded . | . . . . . . . . . . . . . . . . . . Haulers Reinforced 2 | . . . . . . . . 1 1 . . . . . . . . Active Scanning Responses . | . . . . . . . . . . . . . . . . . . Cargo Convoy Interrupts . | . . . . . . . . . . . . . . . . . . Stealth | -11 -10 -10 -9 -9 -9 -8 -8 -7 -7 -7 -7 -5 -5 -5 -5 -4 -4 --------- Run | Yrd Mat Min Mat Min Exi Min Mat Fac Sto Rec Scr Fac Ext Cet Arc Fac Arm Distress Signals 21 | . . . 4 . . . 1 . 2 . . 2 1 2 . 6 3 Communications Jammed . | . . . . . . . . . . . . . . . . . . Distress Signals . | . . . . . . . . . . . . . . . . . . Times Spotted 290 | . 15 14 40 11 . . 10 28 14 4 . 34 38 4 4 64 10 Peak Tracking Total 13 | . 5 10 13 4 . . 5 6 5 2 . 5 5 4 1 6 6 Tactical Retreats 41 | . 3 5 11 1 . . 2 6 1 . . 6 3 . . 3 . ECM-based Alert Blocks 11 | . 9 2 . . . . . . . . . . . . . . . Traps | -11 -10 -10 -9 -9 -9 -8 -8 -7 -7 -7 -7 -5 -5 -5 -5 -4 -4 ------- Run | Yrd Mat Min Mat Min Exi Min Mat Fac Sto Rec Scr Fac Ext Cet Arc Fac Arm Traps Triggered 6 | . 1 . 1 . . . . . 1 . . 3 . . . . . Indirectly . | . . . . . . . . . . . . . . . . . . Trap Hack Attempts . | . . . . . . . . . . . . . . . . . . Triggered . | . . . . . . . . . . . . . . . . . . Disarmed . | . . . . . . . . . . . . . . . . . . Reprogrammed . | . . . . . . . . . . . . . . . . . . Reused . | . . . . . . . . . . . . . . . . . . Traps Extracted . | . . . . . . . . . . . . . . . . . . Installed . | . . . . . . . . . . . . . . . . . . Triggered . | . . . . . . . . . . . . . . . . . . Objects Rigged 6 | . . . . . . . . . . . . . 6 . . . . Exploded 4 | . . . . . . . . . . . . . 4 . . . . Machines | -11 -10 -10 -9 -9 -9 -8 -8 -7 -7 -7 -7 -5 -5 -5 -5 -4 -4 ---------- Run | Yrd Mat Min Mat Min Exi Min Mat Fac Sto Rec Scr Fac Ext Cet Arc Fac Arm Machines Disabled 12 | . . . . . . . . 1 4 . . 2 2 . . 3 . Max in Single Turn 1 | . . . . . . . . 1 1 . . 1 . . . 1 . Energy Cycler 1 | . . . . . . . . . . . . . 1 . . . . Machines Repaired . | . . . . . . . . . . . . . . . . . . Machines Dismantled . | . . . . . . . . . . . . . . . . . . Machines Sabotaged . | . . . . . . . . . . . . . . . . . . Overloaded Fab Kills . | . . . . . . . . . . . . . . . . . . Hacking | -11 -10 -10 -9 -9 -9 -8 -8 -7 -7 -7 -7 -5 -5 -5 -5 -4 -4 --------- Run | Yrd Mat Min Mat Min Exi Min Mat Fac Sto Rec Scr Fac Ext Cet Arc Fac Arm Machines Accessed 68 | . 7 . 9 1 2 1 3 9 6 11 . 10 4 . . 5 . Terminals 48 | . 6 . 7 1 . 1 2 7 5 5 . 8 4 . . 2 . Fabricators 2 | . . . . . . . . 1 . . . 1 . . . . . Repair Stations 3 | . . . . . . . . 1 1 . . . . . . 1 . Recycling Units 8 | . 1 . . . . . . . . 6 . . . . . 1 . Scanalyzers 5 | . . . 2 . . . 1 . . . . 1 . . . 1 . Garrison Access . | . . . . . . . . . . . . . . . . . . Total Hacks 152 | . 20 . 26 3 2 2 8 21 10 24 . 20 6 . . 10 . Successful 70 | . 10 . 15 1 2 1 3 10 5 9 . 7 3 . . 4 . Failed 81 | . 10 . 11 1 . 1 5 11 5 15 . 13 3 . . 6 . Catastrophic 18 | . . . 1 . . 1 1 1 1 5 . 4 1 . . 3 . Database Lockouts 1 | . . . . 1 . . . . . . . . . . . . . Manual 95 | . 19 . 20 3 1 2 5 8 4 24 . 7 2 . . . . Terminals 114 | . 18 . 21 3 . 2 5 18 7 14 . 17 6 . . 3 . Fabricators 2 | . . . . . . . . 1 . . . 1 . . . . . Repair Stations 9 | . . . . . . . . 2 3 . . . . . . 4 . Recycling Units 14 | . 2 . . . . . . . . 10 . . . . . 2 . Scanalyzers 11 | . . . 5 . . . 3 . . . . 2 . . . 1 . Garrison Access . | . . . . . . . . . . . . . . . . . . Terminal Hacks 23 | . 2 . 1 1 2 1 . 5 3 . . 4 3 . . 1 . Record 1 | . . . . . 1 . . . . . . . . . . . . Robot Analysis 3 | . . . . 1 . 1 . . . . . 1 . . . . . Prototype ID Bank 1 | . . . . . . . . . 1 . . . . . . . . Open Door 5 | . . . . . . . . . 2 . . . 3 . . . . Level Access Points 2 | . . . . . . . . 1 . . . 1 . . . . . Branch Access Points 2 | . . . . . . . . . . . . 1 . . . 1 . Emergency Access Points 2 | . . . . . . . . 1 . . . 1 . . . . . Terminal Index 2 | . 1 . 1 . . . . . . . . . . . . . . Locate Traps 1 | . . . . . . . . 1 . . . . . . . . . Hauler Manifests 3 | . 1 . . . . . . 2 . . . . . . . . . Proto ID Catalog 1 | . . . . . 1 . . . . . . . . . . . . Fabricator Hacks 1 | . . . . . . . . . . . . 1 . . . . . Network Status 1 | . . . . . . . . . . . . 1 . . . . . Repair Station Hacks 6 | . . . . . . . . 2 2 . . . . . . 2 . Scan Component 3 | . . . . . . . . 1 1 . . . . . . 1 . Repair 3 | . . . . . . . . 1 1 . . . . . . 1 . Recycling Unit Hacks . | . . . . . . . . . . . . . . . . . . Scanalyzer 8 | . . . 4 . . . 2 . . . . 1 . . . 1 . Insert Component 3 | . . . 2 . . . . . . . . 1 . . . . . Analyze 2 | . . . 2 . . . . . . . . . . . . . . Retrieve Study 3 | . . . . . . . 2 . . . . . . . . 1 . Garrison Access Hacks . | . . . . . . . . . . . . . . . . . . Unauthorized Hacks 32 | . 8 . 10 . . . 1 3 . 9 . 1 . . . . . Terminals 24 | . 7 . 10 . . . 1 2 . 3 . 1 . . . . . Assimilate 1 | . . . . . . . . 1 . . . . . . . . . Botnet 11 | . 2 . 3 . . . 1 1 . 3 . 1 . . . . . Disrupt 1 | . . . 1 . . . . . . . . . . . . . . Skim 11 | . 5 . 6 . . . . . . . . . . . . . . Fabricators 1 | . . . . . . . . 1 . . . . . . . . . Liberate 1 | . . . . . . . . 1 . . . . . . . . . Repair Stations . | . . . . . . . . . . . . . . . . . . Recycling Units 7 | . 1 . . . . . . . . 6 . . . . . . . Tunnel 7 | . 1 . . . . . . . . 6 . . . . . . . Scanalyzers . | . . . . . . . . . . . . . . . . . . Garrison Access . | . . . . . . . . . . . . . . . . . . Data Cores Recovered 1 | . . . . . . . . . 1 . . . . . . . . Used . | . . . . . . . . . . . . . . . . . . Hacking Detections 45 | . 4 . 6 . . 1 3 6 5 5 . 8 3 . . 4 . Full Trace Events 8 | . . . 1 . . . 1 . . 1 . 3 1 . . 1 . Feedback Events . | . . . . . . . . . . . . . . . . . . Feedback Blocked . | . . . . . . . . . . . . . . . . . . Robot Schematics Acquired . | . . . . . . . . . . . . . . . . . . Robots Built . | . . . . . . . . . . . . . . . . . . Authchips . | . . . . . . . . . . . . . . . . . . Time . | . . . . . . . . . . . . . . . . . . Total Robot Build Rating . | . . . . . . . . . . . . . . . . . . Part Schematics Acquired 2 | . . . 2 . . . . . . . . . . . . . . Parts Built . | . . . . . . . . . . . . . . . . . . Authchips . | . . . . . . . . . . . . . . . . . . Time . | . . . . . . . . . . . . . . . . . . Total Part Build Rating . | . . . . . . . . . . . . . . . . . . Part Studies Acquired 3 | . . . . . . . 2 . . . . . . . . 1 . Parts Repaired 3 | . . . . . . . . 1 1 . . . . . . 1 . Time 120 | . . . . . . . . 38 26 . . . . . . 56 . Parts Recycled . | . . . . . . . . . . . . . . . . . . Recycled Matter . | . . . . . . . . . . . . . . . . . . Retrieved Matter . | . . . . . . . . . . . . . . . . . . Retrieved Components . | . . . . . . . . . . . . . . . . . . Parts Scanalyzed 2 | . . . 2 . . . . . . . . . . . . . . Part Schematics Acquired 2 | . . . 2 . . . . . . . . . . . . . . Parts Damaged . | . . . . . . . . . . . . . . . . . . Bothacking | -11 -10 -10 -9 -9 -9 -8 -8 -7 -7 -7 -7 -5 -5 -5 -5 -4 -4 ------------ Run | Yrd Mat Min Mat Min Exi Min Mat Fac Sto Rec Scr Fac Ext Cet Arc Fac Arm Used RIF Installer . | . . . . . . . . . . . . . . . . . . Robots Hacked . | . . . . . . . . . . . . . . . . . . Non-combat . | . . . . . . . . . . . . . . . . . . Combat . | . . . . . . . . . . . . . . . . . . Robot Hacks Applied . | . . . . . . . . . . . . . . . . . . Relay Couplers Released . | . . . . . . . . . . . . . . . . . . Fabnet Peak Effective % . | . . . . . . . . . . . . . . . . . . Robots Rewired 25 | . . . . . . . . . . 5 . . 20 . . . . Allies Hacked . | . . . . . . . . . . . . . . . . . . Hacks Repelled . | . . . . . . . . . . . . . . . . . . Allies | -11 -10 -10 -9 -9 -9 -8 -8 -7 -7 -7 -7 -5 -5 -5 -5 -4 -4 -------- Run | Yrd Mat Min Mat Min Exi Min Mat Fac Sto Rec Scr Fac Ext Cet Arc Fac Arm Total Allies 49 | . . 2 . . . . . 3 12 5 . . 27 . . . . Largest Group 15 | . . 2 . . . . . 2 12 5 4 4 15 7 1 . . Highest-Rated Group 552 | . . 43 . . . . . 64 235 79 63 63 552 197 20 . . Highest-Rated Ally 159 | . . 31 . . . . . 32 31 21 21 21 159 39 20 . . Total Orders 16 | . . . . . . . . 2 . . . 1 5 . . . 8 STAY 6 | . . . . . . . . 1 . . . 1 4 . . . . FOLLOW 3 | . . . . . . . . 1 . . . . 1 . . . 1 EXPLORE 5 | . . . . . . . . . . . . . . . . . 5 RETURN 2 | . . . . . . . . . . . . . . . . . 2 Ally Attacks 310 | . . 5 . . . . . 7 92 9 . 15 145 37 . . . Total Damage 5318 | . . 41 . . . . . 330 1336 118 . 261 2535 697 . . . Kills 32 | . . 1 . . . . . 4 8 1 . 2 13 3 . . . Allies Corrupted 2 | . . . . . . . . 1 . . . . 1 . . . . Allies Melted . | . . . . . . . . . . . . . . . . . . Intel | -11 -10 -10 -9 -9 -9 -8 -8 -7 -7 -7 -7 -5 -5 -5 -5 -4 -4 ------- Run | Yrd Mat Min Mat Min Exi Min Mat Fac Sto Rec Scr Fac Ext Cet Arc Fac Arm Active Infowar (turns) 2797 | . 458 216 1079 111 226 183 219 305 . . . . . . . . . Seismic 2734 | . 417 195 1079 111 226 183 219 304 . . . . . . . . . Machine Analysis 1 | . . . . . . . . 1 . . . . . . . . . Jamming 136 | . . . . . . . . 136 . . . . . . . . . ECM 93 | . 61 32 . . . . . . . . . . . . . . . Robot Analysis Total 3 | . . . . 1 . 1 . . . . . 1 . . . . . Derelict Logs Recovered . | . . . . . . . . . . . . . . . . . . Drone Launches 6 | . . . . . . . . . . . . . . . . . 6 Drone Recoveries 4 | . . . . . . . . . . . . . . . . . 4 Exploration | -11 -10 -10 -9 -9 -9 -8 -8 -7 -7 -7 -7 -5 -5 -5 -5 -4 -4 ------------- Run | Yrd Mat Min Mat Min Exi Min Mat Fac Sto Rec Scr Fac Ext Cet Arc Fac Arm Turns Passed 17683 | 35 520 216 1079 139 226 183 265 2492 700 1111 1753 2874 2557 283 509 2348 393 Spaces Moved 9925 | 38 468 296 1188 191 237 297 218 958 527 586 1071 1270 1070 158 161 1037 154 Core 3366 | 29 468 296 1185 186 237 297 122 44 348 . . 1 . . . 35 118 Treads 6559 | 9 . . 3 5 . . 96 914 179 586 1071 1269 1070 158 161 1002 36 Legs . | . . . . . . . . . . . . . . . . . . Wheels . | . . . . . . . . . . . . . . . . . . Hover . | . . . . . . . . . . . . . . . . . . Flight . | . . . . . . . . . . . . . . . . . . Fastest Speed 50 | 50 50 50 50 50 50 50 50 50 50 160 160 156 161 161 161 50 50 Average Speed 132 | 76 50 50 50 52 50 50 94 201 87 160 160 182 161 161 161 161 167 Slowest Speed 1700 | 160 50 50 160 160 50 50 152 1550 160 160 160 1700 163 161 161 243 200 Overloaded Moves . | . . . . . . . . . . . . . . . . . . Propulsion Burnouts . | . . . . . . . . . . . . . . . . . . Robots Hopped . | . . . . . . . . . . . . . . . . . . Potential Cave-ins . | . . . . . . . . . . . . . . . . . . Cave-ins Triggered . | . . . . . . . . . . . . . . . . . . Exploration Rate (%) 49 | 4 62 58 62 44 62 47 30 21 53 97 57 38 86 60 68 30 9 Regions Visited 17 Branch Regions 11 Pre-discovered Areas 10 | . 2 . 1 . 1 . . . . 6 . . . . . . . Known Exits Taken 8 | . . 1 1 . . . . 1 . 1 1 1 . . 1 1 . Unknown Exits Taken 9 | 1 1 . . 1 1 1 1 . 1 . . . 1 1 . . . Scrap Searched 5 | . . . . . . . . . . . 5 . . . . . . Spaces Dug 13 | . . . . . . . . 5 1 . . 7 . . . . . Terrain Destroyed 13 | . . . . . . . . 5 1 . . 7 . . . . . Melee 13 | . . . . . . . . 5 1 . . 7 . . . . . Projectile . | . . . . . . . . . . . . . . . . . . AOE . | . . . . . . . . . . . . . . . . . . Terrain Rammed . | . . . . . . . . . . . . . . . . . . Walls Destroyed . | . . . . . . . . . . . . . . . . . . Machines Disabled . | . . . . . . . . . . . . . . . . . . Actions | -11 -10 -10 -9 -9 -9 -8 -8 -7 -7 -7 -7 -5 -5 -5 -5 -4 -4 --------- Run | Yrd Mat Min Mat Min Exi Min Mat Fac Sto Rec Scr Fac Ext Cet Arc Fac Arm Total 13714 | 42 753 353 1653 214 343 330 251 1363 702 712 1112 1741 1828 176 390 1489 262 Wait 2522 | . 277 37 430 . 106 34 17 284 107 61 4 311 369 . 175 243 67 Move 9908 | 37 467 295 1187 190 236 296 217 957 526 585 1070 1269 1069 157 160 1036 154 Hop . | . . . . . . . . . . . . . . . . . . Pick Up 145 | 3 5 1 3 . 1 . . 11 13 11 27 16 22 2 9 18 3 Fast Attach 72 | 2 1 . 4 . . . 2 12 12 2 2 7 6 . 3 11 8 Attach 59 | . 1 . 1 1 . . . . 3 1 1 10 7 1 1 25 7 Detach 22 | . . . . . . . . 1 . . . 3 1 1 . 13 3 Swap 68 | . . . 3 . . . 2 9 1 . 2 16 11 4 6 14 . Drop 86 | . 2 1 3 . . . . 11 3 . 6 12 20 2 11 13 2 Fire . | . . . . . . . . . . . . . . . . . . Melee 474 | . . . . . . . 13 78 33 24 . 97 64 9 25 116 15 Ram 5 | . . 1 1 . . . . . . . . . . . . . 3 Kick . | . . . . . . . . . . . . . . . . . . Crush 62 | . . 18 21 23 . . . . . . . . . . . . . Escape Stasis . | . . . . . . . . . . . . . . . . . . Rewire 285 | . . . . . . . . . 4 28 . . 253 . . . . Trap 6 | . . . . . . . . . . . . . 6 . . . . Miscellaneous . | . . . . . . . . . . . . . . . . . . Route ------- -11/Scrapyard -10/Materials (discovered 5 exits: *Mat x3 / [*Min x2]) -10/Mines -9/Materials (discovered 5 exits: *Mat x3 / *Min x2) -9/Mines (discovered 3 exits: *Mat x2 / *Exi) -9/Exiles (discovered 2 exits: *Min x2) -8/Mines -8/Materials -7/Factory (discovered 6 exits: Fac x4 / *Sto x2) -7/Storage (discovered 2 exits: Fac / *Rec) -7/Recycling (discovered 2 exits: *Fac / *Scr) -7/Scraptown -5/Factory (discovered 8 exits: *Fac x4 / *Upp x2 / *Ext x2) -5/Extension (discovered 2 exits: *Fac / *Cet) -5/Cetus -5/Archives -4/Factory (discovered 4 exits: [*Res] / *Upp x2 / *Arm) -4/Armory History --------- Turn | Location | Event 11 | -11/Scrapyard | Discovered new exit (range 15) 36 | -11/Scrapyard | Entered Materials 69 | -10/Materials | Discovered new exit (range 7) 89 | -10/Materials | Discovered new exit (range 4) 173 | -10/Materials | Discovered new exit (range 13) 182 | -10/Materials | Discovered new exit (range 13) 294 | -10/Materials | Learned Storage stockpile data 309 | -10/Materials | Build established: Mutant 340 | -10/Materials | Learned location of 1 exit from Recycling 374 | -10/Materials | Learned location of Mines (-8) 400 | -10/Materials | Learned Storage security intel 416 | -10/Materials | Loaded intel: 2 recycling unit locations 423 | -10/Materials | Learned location of 1 exit from Storage 438 | -10/Materials | Learned location of 2 exits from Subcaves 492 | -10/Materials | Identified exit to Materials 556 | -10/Materials | Entered Mines 562 | -10/Mines | Assembled infested the area 567 | -10/Mines | Assisted by a Guerilla fighting off Assembled 770 | -10/Mines | Discovered exit to Materials (range 6) 772 | -10/Mines | Entered Materials 772 | -9/Materials | Evolved 2 slots: Propulsion x2 821 | -9/Materials | Discovered new exit (range 4) 889 | -9/Materials | Discovered new exit (range 15) 922 | -9/Materials | Discovered new exit (range 11) 996 | -9/Materials | Discovered new exit (range 6) 1397 | -9/Materials | Discovered new exit (range 13) 1506 | -9/Materials | Learned Storage garrison access intel 1572 | -9/Materials | Search patrols dispatched 1574 | -9/Materials | Loaded intel: 11 trap records 1740 | -9/Materials | Identified exit to Mines 1818 | -9/Materials | Learned location of 1 exit from Recycling 1851 | -9/Materials | Entered Mines 1862 | -9/Mines | Met a Derelict bent on vengeance 1873 | -9/Mines | Discovered new exit (range 9) 1898 | -9/Mines | Core integrity fell below 50% 1963 | -9/Mines | Central database locked down 1976 | -9/Mines | Deemed a non-threat by the Exiles lab entrance 1977 | -9/Mines | Discovered new exit (range 5) 1983 | -9/Mines | Discovered new exit (range 5) 1990 | -9/Mines | Entered Exiles 1998 | -9/Exiles | Discovered new exit (range 15) 2005 | -9/Exiles | Met 8R-AWN 2011 | -9/Exiles | Met EX-HEX 2026 | -9/Exiles | Met EX-BIN 2035 | -9/Exiles | Aligned with FarCom system 2035 | -9/Exiles | Given EX-Vault access code 2047 | -9/Exiles | Opened EX-Vault 2050 | -9/Exiles | Found PSU Rigger 2062 | -9/Exiles | Warned to stay clear of 0b10 Research branches 2069 | -9/Exiles | Exiles lab attacked by MAIN.C 2080 | -9/Exiles | Learned location of Zion (-6) 2123 | -9/Exiles | Discovered new exit (range 14) 2216 | -9/Exiles | Left Exiles lab with PSU Rigger 2216 | -9/Exiles | Entered Mines 2293 | -8/Mines | Discovered new exit (range 7) 2399 | -8/Mines | Entered Materials 2399 | -8/Materials | Evolved 2 slots: Propulsion x2 2446 | -8/Materials | Discovered new exit (range 15) 2664 | -8/Materials | Entered Factory 2664 | -7/Factory | Evolved 2 slots: Weapon x2 2665 | -7/Factory | Identified exit to Storage 2951 | -7/Factory | Repaired Adv. Treads+ 3836 | -7/Factory | Identified exit to Factory 4052 | -7/Factory | P-60 Hacker assimilated allied Technician 4a 4120 | -7/Factory | Build established: Gladiator 4779 | -7/Factory | Garrison activated, responded to threat 4865 | -7/Factory | Lost 3 parts (2n1w) 4942 | -7/Factory | Core integrity fell below 50% 4952 | -7/Factory | System corruption reached 10% 5156 | -7/Factory | Entered Storage 5253 | -7/Storage | Build established: Mutant 5287 | -7/Storage | Met a pair of Derelict thieves 5401 | -7/Storage | Assisted by bots powering up and referring to "LRC-V3" 5473 | -7/Storage | Lost 3 allies 5568 | -7/Storage | Repaired Hammer 5705 | -7/Storage | Build established: Commander-Mutant 5711 | -7/Storage | Lost 5 allies 5715 | -7/Storage | P-60 Hacker assimilated allied Trooper 4b 5739 | -7/Storage | Core integrity fell below 20% 5755 | -7/Storage | Lost 3 allies 5850 | -7/Storage | Used back door to open Recycling access 5850 | -7/Storage | Discovered new exit (range 5) 5856 | -7/Storage | Entered Recycling 5857 | -7/Recycling | Identified exit to Scraptown 5857 | -7/Recycling | Identified exit to Factory 6007 | -7/Recycling | Build established: Mutant 6836 | -7/Recycling | Build established: Commander-Mutant 6901 | -7/Recycling | Scanned before Scraplab entrance 6923 | -7/Recycling | Entered Scraplab 6967 | -7/Recycling | Entered Scraptown 6967 | -7/Scraptown | Accompanied by 4 allies 6967 | -7/Scraptown | System corruption cleaned by C-Scrubber 7289 | -7/Scraptown | Discovered exit to Factory (range 13) 7550 | -7/Scraptown | Visited Comm Corps 7646 | -7/Scraptown | Visited Spacefarers 7712 | -7/Scraptown | Visited Awakened 7939 | -7/Scraptown | Visited Fellowship of the Rings 7973 | -7/Scraptown | Visited Cyclists 7987 | -7/Scraptown | Turned away by UFD registrar 8030 | -7/Scraptown | Visited SPCMW 8051 | -7/Scraptown | Visited TADAMA 8600 | -7/Scraptown | Heard Great Nut preacher, LISTEN AND RECITE! 8720 | -7/Scraptown | Entered Factory 8720 | -5/Factory | Accompanied by 4 allies 8720 | -5/Factory | Evolved 4 slots: Propulsion x2, Utility x2 9024 | -5/Factory | Build established: Scavenger-Gladiator 9485 | -5/Factory | Discovered new exit (range 4) 9499 | -5/Factory | Identified exit to Upper Caves 9709 | -5/Factory | Identified exit to Factory 10023 | -5/Factory | Lost 6 parts (1p5n) 10177 | -5/Factory | Lost 3 parts (3n) 11053 | -5/Factory | Build established: Gladiator 11091 | -5/Factory | Identified exit to Extension 11572 | -5/Factory | Build established: Scavenger-Gladiator 11594 | -5/Factory | Entered Extension 12524 | -5/Extension | Rescued a captive Derelict 12561 | -5/Extension | Build established: Commander-Gladiator 12963 | -5/Extension | Lost 3 parts (2n1w) 13011 | -5/Extension | Rescued A7 13565 | -5/Extension | Spotted B-75 Beast 13578 | -5/Extension | Allies destroyed B-75 Beast 13594 | -5/Extension | Spotted B-75 Beast 13615 | -5/Extension | Allies destroyed B-75 Beast 13634 | -5/Extension | Lost 8 allies 13711 | -5/Extension | Rescued a captive Derelict 13712 | -5/Extension | Rescued a captive Derelict 13713 | -5/Extension | Energy Cycler disabled 13713 | -5/Extension | Rescued a captive Derelict 13713 | -5/Extension | Rescued a captive Derelict 13714 | -5/Extension | Rescued a captive Derelict 13716 | -5/Extension | Rescued a captive Derelict 13716 | -5/Extension | Rescued a captive Derelict 13717 | -5/Extension | Rescued a captive Derelict 13720 | -5/Extension | Rescued a captive Derelict 13772 | -5/Extension | Lost 6 allies 13911 | -5/Extension | Build established: Scavenger-Gladiator 13974 | -5/Extension | Extracted ID and sensor layout for unrecognized location from A7's data core 14031 | -5/Extension | Lost 3 allies 14113 | -5/Extension | Discovered exit to Factory (range 10) 14121 | -5/Extension | Discovered new exit (range 6) 14151 | -5/Extension | Entered Cetus 14151 | -5/Cetus | Accompanied by 7 allies 14193 | -5/Cetus | Spotted Cetus Guard 14193 | -5/Cetus | Allies destroyed Cetus Guard 14193 | -5/Cetus | Spotted Cetus Guard 14194 | -5/Cetus | Spotted Cetus Guard 14196 | -5/Cetus | Spotted Cetus Guard 14215 | -5/Cetus | Allies destroyed Cetus Guard 14221 | -5/Cetus | Destroyed Cetus Guard 14231 | -5/Cetus | Destroyed Cetus Guard 14242 | -5/Cetus | Lost 5 allies 14339 | -5/Cetus | Discovered new exit (range 15) 14434 | -5/Cetus | Entered Archives 14434 | -5/Archives | Accompanied by 1 ally 14920 | -5/Archives | Discovered exit to Factory (range 14) 14943 | -5/Archives | Entered Factory 14943 | -4/Factory | Evolved 2 slots: Weapon x2 15045 | -4/Factory | Repaired Arm. Medium Treads 15297 | -4/Factory | Discovered new exit (range 5) 15758 | -4/Factory | Identified exit to Upper Caves 15758 | -4/Factory | Identified exit to Armory 15905 | -4/Factory | Discovered new exit (range 13) 16214 | -4/Factory | Lost 3 parts (1n1u1w) 16567 | -4/Factory | Garrison activated, responded to threat 16835 | -4/Factory | Spotted B-86 Titan 16859 | -4/Factory | Destroyed B-86 Titan 16982 | -4/Factory | Lost 7 parts (5n1u1w) 17102 | -4/Factory | Lost 5 parts (4n1w) 17270 | -4/Factory | Core integrity fell below 50% 17291 | -4/Factory | Entered Armory 17530 | -4/Armory | Found Adv. Force Booster 17550 | -4/Armory | Build established: Mutant 17668 | -4/Armory | Core integrity fell below 20% 17684 | -4/Armory | Destroyed by G-67 Veteran with Plasma Rifle Last Messages --------------- 17663_ G-67 Veteran Flexi-carbon Leg severed. 17667_ W-44 Eye sends out distress signal. 17670_ Destroyed Lgt. Antimatter Reactor. 17675_ G-67 Veteran destroyed. 17675_ Molecular Scythe destroyed. 17675_ Propulsion Shielding destroyed. 17678_ Adv. Medium Treads destroyed. 17679_ Acquired Force Lance+. 17679_ Force Lance+ destroyed. 17679_ P-70 Sage resets P-70 Sage, system corruption cleaned. 17680_ Slammed into G-67 Veteran. 17680_ Destabilizing: System interference. 17680_ PSU Rigger temporarily disabled. 17681_ Acquired 72 matter. 17681_ Slammed into G-67 Veteran. 17681_ Destabilizing: System corrupted (+1). 17682_ Slammed into G-67 Veteran. 17683_ P-70 Sage resets G-67 Veteran, system corruption cleaned. Map ----- +----------------------------------------------------+ | ?????????????????????????????????# [ | | ?????????????????????????????????# ####%= ##### | | ?????????????????????????????????## ##??#!! #???? | | ???????????????#################### #???#[%*#???? | | ???????????????# * # #???#####???? | | ???????????????# = ! # #???????????? | | ???????????????# ]=] # #???????????? | | ???????????????# = + #???????????? | | ???????????????# # #???????????? | | ???????????????# # #???????????? | | ???????????????# # #######?????? | | ???????????????# # #?????? | | ???????????????####################+###### #?????? | | ???????????????????????????????# ## #?????? | | ???????????????????????????????# != """ ## ##????? | | ???????????????????????????????# !* """ # # """? | | ???????????????????????????????# ! """ # + | | ???????????????????????????????# # # | | ???????????????????????????????#[ """ ## ##?? | | ???????????????????????????????# """ ## #????? | | ???????????????????????????????# """ ## #?????? | | ???????????????????????????????# ??# ####### | | ?????????????# ??????????????############# # | | ?????????????? ???#######?# p p + | | ????????????##### ## #?#!= w # ! | | ?????????? @ ###=*% # | | ?????????? g%=% =g #= != | | ?????????? ################# == | | ???????????########### #???????????????# | | ?????????????????????#######???????????????####### | | ?????????????????????????????????????????????????? | | ?????????????????????????????????????????????????? | | ?????????????????????????????????????????????????? | | ?????????????????????????????????????????????????? | | ?????????????????????????????????????????????????? | | ?????????????????????????????????????????????????? | | ?????????????????????????????????????????????????? | | ?????????????????????????????????????????????????? | | ?????????????????????????????????????????????????? | | ?????????????????????????????????????????????????? | | ?????????????????????????????????????????????????? | | | | | | | | | | | | | | | | | | | +----------------------------------------------------+ Best States ------------- Heat Dissipation 43 Energy Generation 25 Energy Capacity 350 Matter Stores 300 Matter Capacity 300 Sight Range 16 Terrain Scan Density 10 ECM Strength 1 Jamming Range 12 Additional Mass Support 6 Corruption Containment 8 Armor Coverage 600 Resistance: KI 30 Propulsion Shielding 33 Melee Speed Boost 40 Evasion (%) 50 Melee Accuracy 8 Core Analysis 6 Recoil Reduction 8 Offensive Hacking 22 Authchip Count 1 Item Schematics ----------------- Huge Storage Unit | -9/Materials | Scanalyzed Seismic Detector | -9/Materials | Scanalyzed Robot Schematics ------------------ None Fabricated ------------ Nothing Repaired ---------- Adv. Treads | 10% | -7/Factory Hammer | 18% | -7/Storage Arm. Medium Treads | 15% | -4/Factory Studied --------- Adv. Treads | -8/Materials | Hacked Imp. Treads | -8/Materials | Hacked Force Lance | -4/Factory | Hacked Alien Tech Used ----------------- None Achievements -------------- Ambidextrous Melee Specialist Challenges ------------ None Game ------ Seed SegregatorVariableReplicator Manual? 0 Play Time 02:09:39 Cumulative 127.7 hours Start 2026.09.12 @ 15:44:22 End 2026.09.12 @ 18:52:11 Sessions 3 Manual Loads 0 Difficulty Rogue Special Mode None Game No. 59 Rogue 59 Adventurer 0 Explorer 0 Win Type - Total 6 Types 1/1/2/0/0/0/0/1/0/1 Lore% 74 Gallery% 65 Achievement% 54 Wizard Run 0 Options --------- Layout 1 ASCII 0 Keyboard 1 Movement Arrows Keybinds 0 Fullscreen 2 Font 24/Smallcaps Map View 50x35 Zoom Use 0% Tactical HUD 1 Map Filters NONE Filters NONE Steam 1 RUN: eca2f6d2-7e4a-42f5-920b-96d7a9417ce8